Cogmind - Beta 15 @@@ ROGUE MODE // 2025.05.24 @ 19:56:04 Player: star Result: Destroyed by H-61 Shepherd with Heavy Assault Cannon Performance ------------- Evolutions (2) 1000 Regions Visited (4) 800 Robots Destroyed (55) 275 Value Destroyed (1313) 1313 Prototype IDs (1) 20 Alien Tech Used (0) 0 Bonus (0) 0 TOTAL SCORE: 3408 Bonus ------- None Cogmind --------- Core Integrity 0/550 Matter 270/300 Energy 100/100 System Corruption 4% Temperature Cool (0) Movement Core (50) Location -8/Materials Parts ------- > --- POWER (1) -------- (None) > --- PROPULSION (3) --- (None) > --- UTILITY (3) ------ (None) > --- WEAPON (4) ------- (None) > --- INVENTORY (5) ---- Reaction Control System Peak State ------------ > --- POWER ------------ Heavy Ion Engine > --- PROPULSION ------- Wheel Wheel Wheel > --- UTILITY ---------- Improved Heat Sink Large Storage Unit Signal Interpreter > --- WEAPON ----------- Spread Laser Spread Laser Spread Laser Heavy Battle Rifle > --- INVENTORY -------- Heavy Ion Engine Light Treads Wheel Heat Sink Small Battery ECM Suite Reaction Control System Light Armor Plating Shield Generator Shock Rifle Small Laser Heavy Assault Rifle [Rating: 23] Favorites ----------- Power Heavy Ion Engine Engine Heavy Ion Engine Power Core Light Nuclear Core Propulsion Light Treads Treads Light Treads Leg Aluminum Leg Wheel Wheel Utility Large Storage Unit Device Improved Heat Sink Storage Large Storage Unit Processor Signal Interpreter Protection Light Armor Plating Weapon Spread Laser Energy Gun Spread Laser Ballistic Gun Heavy Battle Rifle Launcher Grenade Launcher Build | -11 -10 -9 -9 -8 ------- Run | Yrd Mat Mat Min Mat Slots Evolved 4 | . . 2 . 2 Power . | . . . . . Propulsion 1 | . . . . 1 Utility 1 | . . . . 1 Weapon 2 | . . 2 . . Parts Attached 37 | 5 4 11 6 11 Power 4 | 1 . 1 . 2 Engine 3 | 1 . 1 . 1 Core 1 | . . . . 1 Reactor . | . . . . . Propulsion 10 | 2 . 2 4 2 Treads 3 | . . 2 1 . Leg 3 | 2 . . . 1 Wheel 4 | . . . 3 1 Hover . | . . . . . Flight . | . . . . . Utility 9 | . 3 2 1 3 Device 6 | . 2 1 . 3 Storage 1 | . 1 . . . Processor 1 | . . . 1 . Hackware . | . . . . . Protection 1 | . . 1 . . Artifact . | . . . . . Weapon 14 | 2 1 6 1 4 Energy Gun 7 | 1 1 4 . 1 Energy Cannon . | . . . . . Ballistic Gun 3 | 1 . 1 1 . Ballistic Cannon . | . . . . . Launcher 4 | . . 1 . 3 Special Weapon . | . . . . . Impact Weapon . | . . . . . Slashing Weapon . | . . . . . Piercing Weapon . | . . . . . Special Melee Weapon . | . . . . . Unidentified Prototypes 1 | . . 1 . . Corrupted Parts 2 | . 1 . . 1 System Corruption 5 | . 1 . . 4 Parts Lost 28 | . 2 5 3 18 Power 3 | . 1 . . 2 Propulsion 9 | . . 2 2 5 Utility 4 | . . 2 . 2 Weapon 12 | . 1 1 1 9 Highest Loss Streak 15 | . 1 1 2 15 To Critical Strikes . | . . . . . Average Backups 6 | . . 3 8 7 Power . | . . . 1 . Propulsion . | . . . . 1 Utility 3 | . . 1 5 4 Weapon 1 | . . 1 2 1 Tool/Special . | . . . . . Unused Backups 4 | . . 1 . 3 Power . | . . . . . Propulsion . | . . . . . Utility 4 | . . 1 . 3 Weapon . | . . . . . Tool/Special . | . . . . . Average Slot Usage (%) 88 | . 79 85 95 67 Engine 9 | . 8 7 11 5 Treads 12 | . . 11 17 . Leg 5 | . 27 8 . . Wheel 3 | . . . 2 15 Device 3 | . 8 9 . 7 Storage 9 | . 5 11 11 5 Processor 6 | . . . 9 4 Energy Gun 26 | . 15 20 33 18 Ballistic Gun 9 | . 12 11 8 7 Peak Build Rating 23 | 5 10 16 18 23 Average Rating 14 | 3 7 11 16 15 On Entrance 9 | . 5 9 16 18 Naked Turns 28 | . . . . 28 Heaviest Build 43 | 7 29 43 43 42 Greatest Support 40 | 20 20 40 40 30 Greatest Overweight (x) 12 | . 1 12 4 4 Average Overweight (x) . | . . . . . Largest Inventory Capacity 15 | 5 15 15 15 15 Average Capacity 13 | 5 9 15 15 11 Most Carried 12 | . 1 7 12 12 Average Carried 6 | . . 3 8 7 Final Capacity 15 | 5 15 15 15 5 Final Carried 12 | . 1 7 12 1 Class Distribution -------------------- 64% | Gunner 22% | Mutant 8% | Scavenger-Tank 4% | Scavenger-Gunner Dominant Class ---------------- Mutant | -10/Materials Gunner | -9/Materials Gunner | -9/Mines Gunner | -8/Materials Resources | -11 -10 -9 -9 -8 ----------- Run | Yrd Mat Mat Min Mat Matter Collected 1075 | 193 151 303 240 188 Remotely . | . . . . . Salvage Created 1533 | . 314 518 295 406 Parts 114 | . 22 54 18 20 Haulers Intercepted 4 | . . 3 . 1 Recyclers Shooed 2 | . . 2 . . Parts Field Recycled . | . . . . . Retrieved Matter . | . . . . . Parts Self-Destructed . | . . . . . Prevented . | . . . . . Kills | -11 -10 -9 -9 -8 ------- Run | Yrd Mat Mat Min Mat Combat Hostiles Destroyed 46 | . 9 17 13 7 Guns 39 | . 9 10 13 7 AOE 7 | . . 7 . . Classes Destroyed 11 | . 2 5 3 1 Worker 2 | . . 1 . 1 Builder 1 | . . 1 . . Tunneler 2 | . . . 2 . Hauler 4 | . . 3 . 1 Recycler 1 | . . . . 1 Swarmer 18 | . 3 12 3 . Grunt 20 | . 6 1 8 5 Brawler 2 | . . 1 . 1 Duelist 2 | . . . 1 1 Sentry 3 | . . 3 . . Assembled 1 | . . . 1 . Best Kill Streak 5 | . 4 5 4 4 Combat Bots Only 5 | . 4 5 3 3 Max Kills in Single Turn 3 | . 1 3 3 2 Gunslinging . | . . . . . Exploded 2 | . . 2 . . Melee . | . . . . . Uniques/NPCs Destroyed . | . . . . . Combat | -11 -10 -9 -9 -8 -------- Run | Yrd Mat Mat Min Mat Hostile Shots Fired 275 | . 39 62 45 129 Missed 62 | . 7 18 9 28 Hits 213 | . 32 44 36 101 Melee 2 | . . 2 . . Projectile 211 | . 32 42 36 101 Critical Strikes 6 | . . 2 1 3 Damage Taken 3162 | . 360 568 481 1753 Core 854 | . 66 103 92 593 Absorbed by Shields 55 | . . . . 55 Core Remaining (%) 74 | 100 73 . 51 . Volleys Fired 139 | . 28 35 48 28 Largest 4 | . 2 4 4 4 Hottest 228 | . 105 218 228 228 Shots Fired 292 | . 49 77 95 71 Gun 283 | . 49 71 94 69 Cannon . | . . . . . Launcher 9 | . . 6 1 2 Special . | . . . . . Kinetic 112 | . 21 29 41 21 Thermal 155 | . 15 42 53 45 Explosive 9 | . . 6 1 2 Electromagnetic 16 | . 13 . . 3 Robot Hit Streak 11 | . 10 8 11 9 Robot Miss Streak 9 | . 3 4 8 9 Penetration Max . | . . . . . Secondary Targets 6 | . 1 2 2 1 Max Gunslinging Chain 1 | . 1 1 1 1 Shots Hit Robots 202 | . 38 52 59 53 Core Hits 175 | . 17 40 62 56 Critical Kills . | . . . . . Critical Parts Destroyed 2 | . . . 1 1 Critical Strikes 2 | . . . 1 1 Destroy 2 | . . . 1 1 Melee Attacks . | . . . . . Impact . | . . . . . Slashing . | . . . . . Piercing . | . . . . . Sneak Attacks . | . . . . . Combat Hostiles . | . . . . . Follow-up Attacks . | . . . . . Damage Inflicted 3417 | . 548 1163 784 922 Guns 2827 | . 548 693 784 802 Cannons . | . . . . . Explosions 586 | . . 470 . 116 Melee . | . . . . . Ramming 4 | . . . . 4 Kinetic 1042 | . 237 288 282 235 Thermal 1619 | . 183 405 502 529 Explosive 586 | . . 470 . 116 Electromagnetic 166 | . 128 . . 38 Impact . | . . . . . Slashing . | . . . . . Piercing . | . . . . . Highest Corruption 4 | . 1 . . 4 Average Corruption 1 | . 1 . . 4 Corruption Purged . | . . . . . Corruption Blocked . | . . . . . Effects 7 | . 4 . . 3 Message Errors 2 | . 1 . . 1 Energy Discharges 1 | . . . . 1 Parts Rejected 1 | . 1 . . . Parts Fused 1 | . 1 . . . Data Loss (minor) 1 | . . . . 1 Misfires 1 | . 1 . . . Overload Shots . | . . . . . Overflow Damage 30 | . . . 7 23 Projectiles . | . . . . . Explosions 30 | . . . 7 23 Melee . | . . . . . Knockbacks . | . . . . . Impact . | . . . . . Kinetic . | . . . . . Secondary . | . . . . . Self-Inflicted Damage 121 | . . 84 37 . Shots 4 | . . 3 1 . Rammed . | . . . . . Targets Rammed 4 | . . . . 4 Kicked 4 | . . . . 4 Crushed . | . . . . . Highest Temperature 443 | . 354 248 443 358 Average Temperature 149 | . 125 71 174 160 Received Heat Transfer 1365 | . 171 108 231 855 Effects 4 | . 1 . 2 1 Shutdowns 1 | . . . 1 . Interference 1 | . 1 . . . Matter Decay 2 | . . . 1 1 Siege Activations . | . . . . . Martial Activations . | . . . . . Shielding Activations . | . . . . . Robots Disrupted . | . . . . . Combat Hostiles . | . . . . . Robots Corrupted . | . . . . . Combat Hostiles . | . . . . . Parts Fried . | . . . . . Impact Corruptions . | . . . . . Robots Melted . | . . . . . Combat Hostiles . | . . . . . Parts Melted 3 | . 1 . . 2 Heat Transferred 2621 | . 444 797 615 765 Parts Sabotaged . | . . . . . Parts Stolen . | . . . . . Parts Stripped . | . . . . . Power Chain Reactions . | . . . . . Alert | -11 -10 -9 -9 -8 ------- Run | Yrd Mat Mat Min Mat Maximum Alert Level 1 | . . 1 . 1 Low Security (%) 92 | 100 100 55 100 98 Level 1 7 | . . 44 . 1 Level 2 . | . . . . . Level 3 . | . . . . . Level 4 . | . . . . . Level 5 . | . . . . . High Security . | . . . . . Max Security . | . . . . . Peak Influence 267 | . 145 252 128 267 Initial 88 | . . 27 88 15 Average 58 | . 74 154 25 79 Influence Increases 1569 | . 235 475 297 562 Destroy 0b10 Robot/C 900 | . 180 340 240 140 Destroy 0b10 Robot/NC 50 | . . 25 10 15 Destroy Leader 188 | . 40 86 30 32 Successful Hack 7 | . . . 7 . Disable Machine 15 | . . . . 15 Destroy Structure 64 | . . 24 10 30 Lose Combat Pursuer 345 | . 15 . . 330 Influence Decreases 1332 | . 170 313 483 366 Entered New Map 203 | . . 38 139 26 Time Decay 859 | . 150 225 324 160 Lost Part 270 | . 20 50 20 180 Squads Dispatched 5 | . 1 . . 4 Investigation 1 | . . . . 1 Extermination . | . . . . . Reinforcement 4 | . 1 . . 3 Assault . | . . . . . Garrison . | . . . . . Intercept . | . . . . . Searches Triggered . | . . . . . Construction Impeded . | . . . . . Haulers Reinforced . | . . . . . Active Scanning Responses . | . . . . . Cargo Convoy Interrupts . | . . . . . Stealth | -11 -10 -9 -9 -8 --------- Run | Yrd Mat Mat Min Mat Distress Signals 8 | . . 6 1 1 Communications Jammed . | . . . . . Distress Signals . | . . . . . Times Spotted 78 | . 15 23 13 27 Peak Tracking Total 11 | . 3 7 3 11 Tactical Retreats 6 | . 1 . . 5 Traps | -11 -10 -9 -9 -8 ------- Run | Yrd Mat Mat Min Mat Traps Triggered 1 | . . . . 1 Indirectly . | . . . . . Trap Hack Attempts . | . . . . . Triggered . | . . . . . Disarmed . | . . . . . Reprogrammed . | . . . . . Reused . | . . . . . Traps Extracted . | . . . . . Installed . | . . . . . Triggered . | . . . . . Machines | -11 -10 -9 -9 -8 ---------- Run | Yrd Mat Mat Min Mat Machines Disabled 1 | . . . . 1 Max in Single Turn 1 | . . . . 1 Machines Repaired . | . . . . . Machines Dismantled . | . . . . . Machines Sabotaged . | . . . . . Overloaded Fab Kills . | . . . . . Hacking | -11 -10 -9 -9 -8 --------- Run | Yrd Mat Mat Min Mat Machines Accessed 2 | . . . 1 1 Terminals 2 | . . . 1 1 Fabricators . | . . . . . Repair Stations . | . . . . . Recycling Units . | . . . . . Scanalyzers . | . . . . . Garrison Access . | . . . . . Total Hacks 3 | . . . 2 1 Successful 3 | . . . 2 1 Failed . | . . . . . Catastrophic . | . . . . . Database Lockouts . | . . . . . Manual 2 | . . . 1 1 Terminals 3 | . . . 2 1 Fabricators . | . . . . . Repair Stations . | . . . . . Recycling Units . | . . . . . Scanalyzers . | . . . . . Garrison Access . | . . . . . Terminal Hacks 2 | . . . 2 . Record 2 | . . . 2 . Fabricator Hacks . | . . . . . Repair Station Hacks . | . . . . . Recycling Unit Hacks . | . . . . . Scanalyzer . | . . . . . Garrison Access Hacks . | . . . . . Unauthorized Hacks 1 | . . . . 1 Terminals 1 | . . . . 1 Assimilate 1 | . . . . 1 Fabricators . | . . . . . Repair Stations . | . . . . . Recycling Units . | . . . . . Scanalyzers . | . . . . . Garrison Access . | . . . . . Data Cores Recovered . | . . . . . Used . | . . . . . Hacking Detections 1 | . . . 1 . Full Trace Events . | . . . . . Feedback Events . | . . . . . Feedback Blocked . | . . . . . Robot Schematics Acquired . | . . . . . Robots Built . | . . . . . Authchips . | . . . . . Time . | . . . . . Total Robot Build Rating . | . . . . . Part Schematics Acquired . | . . . . . Parts Built . | . . . . . Authchips . | . . . . . Time . | . . . . . Total Part Build Rating . | . . . . . Parts Repaired . | . . . . . Time . | . . . . . Parts Recycled . | . . . . . Recycled Matter . | . . . . . Retrieved Matter . | . . . . . Retrieved Components . | . . . . . Parts Scanalyzed . | . . . . . Part Schematics Acquired . | . . . . . Parts Damaged . | . . . . . Bothacking | -11 -10 -9 -9 -8 ------------ Run | Yrd Mat Mat Min Mat Used RIF Installer . | . . . . . Robots Hacked . | . . . . . Non-combat . | . . . . . Combat . | . . . . . Robot Hacks Applied . | . . . . . Relay Couplers Released . | . . . . . Fabnet Peak Effective % . | . . . . . Robots Rewired . | . . . . . Allies Hacked . | . . . . . Hacks Repelled . | . . . . . Allies | -11 -10 -9 -9 -8 -------- Run | Yrd Mat Mat Min Mat Total Allies . | . . . . . Largest Group . | . . . . . Highest-Rated Group . | . . . . . Highest-Rated Ally . | . . . . . Total Orders . | . . . . . Ally Attacks . | . . . . . Total Damage . | . . . . . Kills . | . . . . . Allies Corrupted . | . . . . . Allies Melted . | . . . . . Intel | -11 -10 -9 -9 -8 ------- Run | Yrd Mat Mat Min Mat Active Infowar (turns) . | . . . . . Robot Analysis Total . | . . . . . Derelict Logs Recovered 1 | . . . 1 . Drone Launches . | . . . . . Drone Recoveries . | . . . . . Exploration | -11 -10 -9 -9 -8 ------------- Run | Yrd Mat Mat Min Mat Turns Passed 2975 | 56 371 503 1724 321 Spaces Moved 1275 | 46 177 188 701 163 Core 83 | 9 1 2 . 71 Treads 676 | . . 116 559 1 Legs 289 | 37 176 70 . 6 Wheels 227 | . . . 142 85 Hover . | . . . . . Flight . | . . . . . Fastest Speed 50 | 50 100 160 110 50 Average Speed 172 | 106 150 190 196 88 Slowest Speed 650 | 120 190 650 320 250 Overloaded Moves . | . . . . . Propulsion Burnouts . | . . . . . Robots Hopped . | . . . . . Potential Cave-ins . | . . . . . Cave-ins Triggered . | . . . . . Exploration Rate (%) 33 | 5 32 19 97 14 Regions Visited 4 Branch Regions 1 Pre-discovered Areas 1 | . . . 1 . Known Exits Taken 1 | . . . 1 . Unknown Exits Taken 3 | 1 1 1 . . Scrap Searched 2 | . . . 2 . Spaces Dug 5 | . . . 5 . Terrain Destroyed 82 | . . 25 17 40 Melee . | . . . . . Projectile 12 | . . . 11 1 AOE 70 | . . 25 6 39 Terrain Rammed . | . . . . . Walls Destroyed . | . . . . . Machines Disabled . | . . . . . Actions | -11 -10 -9 -9 -8 --------- Run | Yrd Mat Mat Min Mat Total 1798 | 50 229 265 972 282 Wait 316 | . 15 21 212 68 Move 1271 | 45 176 187 700 163 Hop . | . . . . . Pick Up 13 | . 1 6 5 1 Fast Attach 27 | 5 7 7 2 6 Attach 14 | . . 3 1 10 Detach 2 | . . 2 . . Swap 11 | . 2 3 4 2 Drop 1 | . . 1 . . Fire 139 | . 28 35 48 28 Melee . | . . . . . Ram . | . . . . . Kick 4 | . . . . 4 Crush . | . . . . . Escape Stasis . | . . . . . Rewire . | . . . . . Trap . | . . . . . Miscellaneous . | . . . . . Route ------- -11/Scrapyard -10/Materials -9/Materials -9/Mines (discovered 2 exits: *Mat x2) -8/Materials History --------- Turn | Location | Event 3 | -11/Scrapyard | Discovered new exit (range 16) 57 | -11/Scrapyard | Entered Materials 226 | -10/Materials | Discovered new exit (range 11) 304 | -10/Materials | Build established: Mutant 428 | -10/Materials | Entered another Materials area 428 | -9/Materials | Evolved 2 slots: Weapon x2 860 | -9/Materials | Discovered new exit (range 9) 931 | -9/Materials | Entered Mines 1079 | -9/Mines | Discovered new exit (range 9) 1088 | -9/Mines | Discovered new exit (range 4) 1104 | -9/Mines | Identified exit to Materials 1401 | -9/Mines | Build established: Gunner 1495 | -9/Mines | A weapon hastily lodged in a ceiling crevice suddenly fell to the ground 1706 | -9/Mines | Learned 4 Materials zone layouts 1975 | -9/Mines | Excavation squad dispatched 1975 | -9/Mines | A large section of the Mines collapsed 2590 | -9/Mines | Learned location of Storage (-9) 2655 | -9/Mines | Entered Materials 2655 | -8/Materials | Evolved 2 slots: Propulsion x1, Utility x1 2855 | -8/Materials | Released all parts (7) 2903 | -8/Materials | Core integrity fell below 50% 2930 | -8/Materials | Core integrity fell below 20% 2967 | -8/Materials | Lost 15 parts (2p5n2u6w) 2976 | -8/Materials | Destroyed by H-61 Shepherd with Heavy Assault Cannon Last Messages --------------- 02927_ Lgt. Nuclear Core destroyed. 02928_ K-01 Serf collects debris. 02936_ Kicked G-47 Trooper. 02936_ Carbon-fiber Leg destroyed. 02950_ System corrupted: Energy discharge (-30). 02955_ ALERT: Suspicious intruders detected, dispatching Cutter reinforcements to area. 02961_ Acquired Hvy. Rocket Launcher. 02969_ Penetrated by Slug. 02969_ Hvy. Rocket Launcher destroyed. 02971_ Knocked back. 02972_ Acquired 13 matter. 02973_ Destroyed Tractor Beam. 02973_ R-06 Scavenger destroyed. 02974_ H-61 Shepherd calls for reinforcements. 02974_ ALERT: Hostile activity reported, dispatching reinforcements to area. 02974_ Penetrated by Slug. 02974_ Hvy. Rocket Launcher destroyed. 02975_ The unstable cave ceiling collapses. Map ----- +----------------------------------------------------+ | | | ????????????????????????????######???????????????? | | ???????????????????????????? #???????????????? | | ????????????????????????????" #???????????????? | | ????????????????????????????"" #???????????????? | | ????????????????????????????" #???????????????? | | ???????????????????????????? #???????????????? | | ???????????????????????????? #???????????????? | | ????????????????????????????######???????????????? | | ???????????????????????????? #???????????????????? | | ???????????????????????????? #???????????????????? | | ???????????????????????????? #???????????????????? | | ???????????????????????????? #???????????????????? | | ???????????????????????????? #????????####???????? | | ????????????????????????????####??????# #???????? | | ???????????????????????????? #??????# #???????? | | ????????????????????????????"" ######## ########? | | ????????????????????????????"" + # #? | | ????????????????????????????"" ### # """ #? | | ???????????????????????????? #?###### # "Y" #? | | ???????????????????????????? #??????# # " " #? | | ????????????????????????????T" #?###??# + #? | | ????????????????????????????"" #### # #? | | ???????????????????????###### # ######### | | ???????????????????????#% % # | | ???????????????????????#;@] = H # """"" | | ???????????????????????##!! % ???????? | | ????????????????????????#!! ???????? | | ????????????????????????#!! w#### ?????????? | | ????????????????????????#!! ## r#????????????????? | | ????????????????????????###### u#????????????????? | | ?????????????????????????????# #????????????????? | | ?????????????????????????????# ^+????????????????? | | ?????????????????????######### #????????????????? | | ?????????????????????# # #????????????????? | | ?????????????????????# + +????????????????? | | ?????????????????????# # #????????????????? | | ?????????????????????######### ##???????????????? | | ????????????????????????????# #???????????????? | | ????????????????????????????# #???????????????? | | ????????????????????????????# " +???????????????? | | ????????????????????????????# #???????????????? | | ????????????????????????????## ##???????????????? | | ?????????????????????????????# #????????????????? | | ?????????????????????????????# #????????????????? | | ?????????????????????????????# #?########???????? | | ?????????????????????????????# #?# #???????? | | ?????????????????????????????# #?# #???????? | | ?????????????????????????????# #?# """" #???????? | | ?????????????????????????????# #?# """" #???????? | +----------------------------------------------------+ Best States ------------- Heat Dissipation 55 Energy Generation 14 Energy Capacity 280 Matter Stores 300 Matter Capacity 300 Sight Range 16 Terrain Scan Density 10 Armor Coverage 150 Evasion (%) 55 Recoil Reduction 2 Item Schematics ----------------- None Robot Schematics ------------------ None Fabricated ------------ Nothing Repaired ---------- Nothing Alien Tech Used ----------------- None Achievements -------------- None Challenges ------------ None Game ------ Seed SingularityChipShovel Manual? 0 Play Time 00:23:30 Cumulative 145.5 hours Start 2025.05.24 @ 17:25:24 End 2025.05.24 @ 19:56:04 Sessions 1 Manual Loads 0 Difficulty Rogue Special Mode None Game No. 253 Rogue 253 Adventurer 0 Explorer 0 Win Type - Total 1 Types 1/0/0/0/0/0/0/0/0/0 Lore% 51 Gallery% 57 Achievement% 48 Wizard Run 0 Options --------- Layout 0 ASCII 0 Keyboard 1 Movement Numpad Keybinds 0 Fullscreen 2 Font 18/SmallcapsGlow Map View 76x50 Zoom Use 0% Tactical HUD 1 Map Filters NONE Filters NONE Steam 1 RUN: 45564486-5ae2-407e-90ff-1217b1147ffa